bitfinex/quotes_ETHUSD_20241124
["timestamp","ask_amount","ask_price","bid_price","bid_amount"]
[1732469850274,2.33216913,3307.3,3306.5,1.51215]
[1732469850275,0.7661,3307.2,3306.5,1.51215]
[1732469850487,3.02386,3307.1,3306.5,1.51215]
[1732469851080,3.0238,3307.1,3306.5,1.51213]
[1732469851371,3.0238,3307.1,3306.6,0.06651678]
[1732469851964,3.69258765,3307.1,3306.6,0.06651678]
[1732469852181,0.66878765,3307.1,3306.6,1.57863678]
[1732469852483,3.69258765,3307.1,3306.6,0.06651678]
[1732469852653,0.44586877,3307.0,3306.6,0.06651678]
[1732469852847,3.69258765,3307.1,3306.6,0.06651678]
[1732469853887,6.71645765,3307.1,3306.6,0.06651678]
[1732469854074,3.02397,3307.0,3306.6,0.06651678]
[1732469854582,0.66878765,3307.1,3306.7,0.06651678]
[1732469854583,3.69259765,3307.1,3306.7,0.06651678]
[1732469855732,3.02389,3307.0,3306.5,1.51217]
[1732469855853,3.02389,3307.0,3306.8,0.06620331]
[1732469856059,3.02389,3307.0,3306.5,1.51217]
[1732469856259,3.02389,3307.0,3306.9,0.06620331]
[1732469856899,3.02389,3307.0,3306.5,1.51217]
[1732469857247,3.02389,3307.0,3306.6,0.06620331]
[1732469857681,3.02389,3307.0,3306.5,1.51217]
[1732469857867,3.02389,3307.0,3306.3,1.51226]
[1732469858046,3.02408,3306.8,3306.6,0.06620331]
[1732469858251,3.02408,3306.8,3306.0,1.51236]
[1732469858252,0.8121,3306.7,3306.0,1.51236]
[1732469858477,0.8121,3306.7,3306.1,1.51231]
[1732469858786,3.0244,3306.5,3305.8,1.51247]
[1732469859142,3.02444,3306.4,3305.8,1.51247]
[1732469859656,3.02444,3306.4,3305.8,1.46851238]
[1732469860200,3.02453,3306.3,3305.8,1.46851238]
[1732469860703,0.8121,3306.2,3305.4,1.51265]
[1732469860895,3.02484,3306.0,3305.4,1.51265]
[1732469862406,3.0248,3306.0,3305.4,1.51266]
[1732469862896,3.0248,3306.0,3305.5,1.51262]
[1732469863234,3.83675,3306.2,3305.5,1.51262]
[1732469863503,3.02472,3306.1,3305.5,1.51262]
[1732469864003,4.220425,3306.2,3305.5,1.51262]
[1732469864208,4.220425,3306.2,3305.4,1.51265]
[1732469864384,3.0248,3306.0,3305.4,1.51265]
[1732469864903,3.02448,3306.4,3305.8,1.51245]
[1732469865076,3.02448,3306.4,3305.6,1.51254]
[1732469865282,3.02448,3306.4,3305.8,1.51248]
[1732469865810,2.71581913,3306.5,3305.6,1.51254]
[1732469865811,3.02462,3306.2,3305.6,1.51254]
[1732469865966,0.302462,3306.1,3305.6,1.51254]
[1732469866161,3.02463,3306.2,3305.6,1.51254]
[1732469866369,3.02463,3306.2,3305.7,0.06714377]
[1732469866706,3.02471,3306.1,3305.7,0.06714377]
[1732469867717,3.02462,3306.2,3305.7,0.06714377]
[1732469869101,3.02472,3306.1,3305.7,0.06714377]
[1732469869314,3.327082,3306.2,3305.7,0.06714377]
[1732469869631,3.327082,3306.2,3305.8,0.0671592]
[1732469870008,3.327082,3306.2,3305.6,1.51255]
[1732469870202,3.327082,3306.2,3305.7,0.06712321]
[1732469870514,3.327082,3306.2,3305.8,1.51249]
[1732469870515,0.302462,3306.2,3305.8,1.51249]
[1732469870761,3.02444,3306.4,3305.8,1.51249]
[1732469870883,3.02444,3306.4,3305.9,0.06714891]
[1732469871216,0.57402591,3306.3,3305.9,1.51244]
[1732469871419,3.59855591,3306.3,3305.7,1.51251]
[1732469871715,2.71581913,3306.5,3306.0,0.06714891]
[1732469871978,3.02421,3306.7,3305.9,1.54268939]
[1732469872192,3.02444,3306.4,3306.1,0.06714891]
[1732469872301,3.02444,3306.4,3305.7,1.5125]
[1732469872302,3.02453,3306.3,3305.7,1.5125]
[1732469872721,3.02467,3306.2,3305.8,0.06712321]
[1732469873019,3.02467,3306.2,3305.6,1.51255]
[1732469873227,3.02467,3306.2,3305.9,0.06712321]
[1732469873431,3.77058334,3306.2,3305.6,1.51255]
[1732469873598,3.77058334,3306.2,3306.0,0.06712321]
[1732469873796,3.02471,3306.1,3305.6,1.51255]
[1732469874000,3.02471,3306.1,3305.7,0.06712321]
[1732469874202,3.57563529,3306.1,3305.7,0.06712321]
[1732469874582,3.02498,3305.9,3305.7,0.06712321]
[1732469874857,6.04995,3305.9,3305.3,1.51269]
[1732469875025,3.02497,3305.9,3305.4,1.51264]
[1732469875353,3.02497,3305.9,3305.4,0.06712321]
[1732469875512,3.02486,3306.0,3305.4,1.57976321]
[1732469875745,0.55092529,3306.1,3305.4,0.06712321]
[1732469875946,3.0249,3305.9,3305.4,0.06712321]
[1732469876247,3.02475,3306.1,3305.5,1.51262]
[1732469876546,3.02485,3306.0,3305.5,1.51262]
[1732469876964,3.02485,3306.0,3305.6,0.06712321]
[1732469877132,3.62981,3306.0,3305.6,0.06712321]
[1732469877457,3.025,3305.8,3305.6,0.06712321]
[1732469877650,3.02507,3305.7,3305.6,0.06712321]
[1732469877854,3.02525,3305.6,3305.0,3.0]
[1732469878080,3.409627,3305.6,3305.0,4.51282]
[1732469878356,3.0252,3305.6,3305.0,1.51282]
[1732469879851,6.05044,3305.6,3305.0,1.51282]
[1732469880031,3.0252,3305.6,3305.0,1.51282]
[1732469880233,6.05044,3305.6,3305.0,1.51282]
[1732469880430,3.84371,3305.8,3305.0,1.51282]
[1732469880629,3.02542,3305.4,3304.8,0.61054176]
[1732469880863,3.02587,3304.9,3304.5,0.60226589]
[1732469881156,3.02573,3305.0,3304.5,0.60226589]
[1732469881354,3.02573,3305.0,3304.4,1.51309]
[1732469881656,3.84419,3305.3,3304.7,1.51298]
[1732469881820,3.02536,3305.4,3304.7,1.51298]
[1732469882172,3.327996,3305.3,3304.7,1.51298]
[1732469882355,2.33216913,3305.7,3305.1,1.51279]
[1732469882356,3.02513,3305.7,3305.1,1.51279]
[1732469882691,3.02513,3305.7,3304.8,0.09769016]
[1732469882692,3.02513,3305.7,3304.8,0.06743165]
[1732469882856,3.02513,3305.7,3304.4,2.10584146]
[1732469882857,3.02504,3305.8,3305.2,1.51275]
[1732469883017,3.02504,3305.8,3305.3,1.51271]
[1732469883220,3.02465,3306.2,3305.5,1.51262]
[1732469883444,3.02465,3306.2,3305.4,1.51266]
[1732469883445,3.02495,3305.9,3305.4,0.06743165]
[1732469883641,3.64232191,3306.1,3305.3,1.51271]
[1732469883855,3.02477,3306.1,3305.5,1.51261]
[1732469884154,6.17541913,3306.3,3305.1,0.60267566]
[1732469884155,3.02455,3306.3,3305.7,1.51253]
[1732469884355,3.02455,3306.3,3305.7,1.5125]
[1732469884860,3.02455,3306.3,3305.5,1.51261]
[1732469884861,0.302455,3306.2,3305.5,1.51261]
[1732469884864,3.02473,3306.1,3305.5,1.51261]
[1732469885040,3.02473,3306.1,3305.3,1.51271]
[1732469885267,3.02496,3305.9,3305.6,0.06743165]
[1732469885554,3.02504,3305.8,3305.3,1.51269]
[1732469886032,3.02496,3305.9,3305.4,0.06743165]
[1732469886121,1.14856785,3305.9,3305.4,0.06743165]
[1732469886323,3.02516,3305.7,3305.1,1.51281]
[1732469886517,3.02516,3305.7,3305.5,0.067262]
[1732469886765,3.02516,3305.7,3305.1,1.51281]
[1732469886966,3.02516,3305.7,3305.6,0.06735453]
[1732469887160,3.02517,3305.6,3305.1,1.51281]
[1732469887464,3.02552,3305.3,3304.8,1.51294]
[1732469887637,3.0253,3305.5,3304.7,1.51299]
[1732469887849,3.0253,3305.5,3304.9,1.51287]
[1732469888457,3.02535,3305.4,3304.9,1.51287]
[1732469889150,3.02544,3305.3,3304.6,4.51302]
[1732469889436,3.02563,3305.1,3304.6,1.51302]
[1732469890467,3.02589,3304.9,3303.6,0.39831597]
[1732469890679,0.8128,3305.3,3304.4,1.5131]
[1732469890680,0.302589,3304.8,3304.4,1.5131]
[1732469890841,3.02572,3305.0,3304.4,1.5131]
[1732469891731,3.02581,3304.9,3304.4,1.5131]
[1732469892760,3.02566,3305.1,3304.6,1.51303]
[1732469892928,3.83825,3305.3,3304.5,0.15131]
[1732469893332,3.83825,3305.3,3304.5,1.51307]
[1732469893333,3.02568,3305.1,3304.5,1.51307]
[1732469893985,3.02591,3304.8,3304.2,1.51318]
[1732469894153,3.02591,3304.8,3304.3,1.51317]
[1732469894475,3.02602,3304.7,3304.2,1.51318]
[1732469894660,3.0259,3304.8,3304.2,1.51318]
[1732469894863,3.0258,3305.0,3304.4,1.51313]
[1732469895371,3.0259,3304.8,3304.3,1.51317]
[1732469895564,3.0259,3304.8,3304.0,1.51329]
[1732469895767,3.026,3304.7,3304.4,0.0677299]
[1732469896089,3.02589,3304.9,3304.5,0.0677299]
[1732469896407,3.02589,3304.9,3304.4,1.51312]
[1732469896564,3.02589,3304.9,3304.6,0.0677299]
[1732469896755,3.02589,3304.9,3304.4,1.51312]
[1732469897293,3.02589,3304.9,3304.5,0.0677299]
[1732469897580,0.8128,3305.3,3304.5,1.5808099]
[1732469897783,3.02568,3305.1,3304.5,1.5808099]
[1732469897992,6.8638,3305.3,3304.6,1.51303]
[1732469898168,3.83829,3305.3,3304.5,1.5808099]
[1732469898368,3.02563,3305.1,3304.5,1.51308]
[1732469898689,3.02563,3305.1,3304.6,0.0677299]
[1732469898998,3.02578,3305.0,3304.6,0.0677299]
[1732469899157,3.02586,3304.9,3304.6,0.0677299]
[1732469899481,3.02586,3304.9,3304.7,0.06792019]
[1732469899682,3.02586,3304.9,3304.3,1.51314]
[1732469899986,3.50143269,3305.1,3304.8,0.06811046]
[1732469900164,3.02563,3305.1,3304.5,1.51308]
[1732469900685,3.02563,3305.1,3304.6,0.06811046]
[1732469900847,6.86379,3305.3,3304.6,1.58111046]
[1732469901051,3.02567,3305.1,3304.6,1.58111046]
[1732469901284,4.45533591,3305.3,3304.7,1.51296]
[1732469901496,3.02553,3305.2,3304.7,1.51296]
[1732469901669,3.02553,3305.2,3304.8,0.06811046]
[1732469901872,3.02553,3305.2,3304.5,1.51307]
[1732469902171,3.02553,3305.2,3304.9,0.06811046]
[1732469902372,3.02553,3305.2,3304.6,1.51303]
[1732469902891,3.02553,3305.2,3304.7,0.06811046]
[1732469903465,3.02539,3305.4,3304.7,1.51299]
[1732469903783,3.02552,3305.3,3304.8,0.06811046]
[1732469904302,3.02539,3305.4,3304.8,0.06811046]
[1732469904522,3.02561,3305.2,3304.8,0.06811046]
[1732469904790,3.02561,3305.2,3304.7,1.51297]
[1732469904987,3.02561,3305.2,3304.9,0.06811046]
[1732469905284,3.02583,3304.9,3304.4,1.51311]
[1732469905664,0.34852327,3305.2,3304.0,0.03025783]
[1732469905865,2.33216913,3306.0,3303.9,0.59251875]
[1732469905866,3.02614,3304.6,3304.1,1.51326]
[1732469906171,0.605205,3304.6,3304.0,1.51328]
[1732469906380,3.02591,3304.8,3304.0,0.03026205]
[1732469906580,3.02573,3305.0,3304.4,1.5131]
[1732469906805,3.02557,3305.2,3304.6,1.51301]
[1732469907089,3.02557,3305.2,3304.7,1.51299]
[1732469907388,3.02545,3305.3,3304.7,1.51299]
[1732469907886,3.02545,3305.3,3304.8,1.51294]
[1732469908187,3.02545,3305.3,3304.6,1.513]
[1732469908405,3.02554,3305.2,3304.6,1.513]
[1732469908563,3.02554,3305.2,3304.6,1.815611]
[1732469908898,3.02573,3305.0,3304.6,0.302611]
[1732469909074,6.05152,3305.0,3304.4,1.51311]
[1732469909396,3.02573,3305.0,3304.4,1.51311]
[1732469909550,3.02558,3305.2,3304.5,1.664351]
[1732469909755,3.02558,3305.2,3304.6,1.51304]
[1732469911290,3.02542,3305.4,3304.8,1.51294]
[1732469911789,3.02542,3305.4,3304.9,1.58080046]
[1732469913780,3.02551,3305.3,3304.9,0.06793046]
[1732469914357,3.02555,3305.2,3305.0,0.06793046]
[1732469914485,3.02544,3305.3,3304.7,3.02594]
[1732469914720,3.02544,3305.3,3305.1,0.06793046]
[1732469914935,3.02544,3305.3,3304.8,1.51294]
[1732469915281,0.8301,3305.1,3303.8,1.51339]
[1732469915620,0.8301,3305.1,3303.1,0.1]
[1732469915621,3.02604,3304.7,3304.1,2.13133887]
[1732469915782,3.02604,3304.7,3304.1,3.64457887]
[1732469915980,3.02604,3304.7,3304.1,2.13133887]
[1732469918335,3.02618,3304.5,3303.9,1.51334]
[1732469918491,3.85628,3304.5,3303.9,1.664674]
[1732469918693,3.85628,3304.5,3304.0,1.51329]
[1732469919520,0.8301,3304.5,3304.0,3.02657]
[1732469919726,0.8301,3304.5,3304.0,1.51328]
[1732469919927,3.85635,3304.5,3304.0,1.51331]
[1732469920100,0.8301,3304.5,3304.0,1.51331]
[1732469920592,0.8301,3304.5,3303.9,2.28011481]
[1732469920593,0.8301,3304.5,3304.1,1.51324]
[1732469920807,0.8301,3304.5,3303.9,0.76679481]
[1732469921127,3.85629,3304.5,3304.0,1.51331]
[1732469921301,3.0259,3304.8,3304.2,1.51319]
[1732469921525,0.8301,3305.0,3304.2,1.51319]
[1732469921526,3.85589,3305.0,3304.4,1.5131]
[1732469922222,3.02556,3305.2,3304.5,1.54333936]
[1732469922431,3.02564,3305.1,3304.5,1.54333936]
[1732469922599,3.02564,3305.1,3304.5,1.51308]
[1732469922783,3.02556,3305.2,3304.6,1.51301]
[1732469923122,3.02565,3305.1,3304.5,1.54333869]
[1732469923515,3.02572,3305.0,3304.5,1.51308]
[1732469923724,3.02572,3305.0,3304.3,3.02631]
[1732469923890,3.02588,3304.9,3304.3,1.964457]
[1732469924097,3.02601,3304.7,3304.1,1.51324]
[1732469924293,3.85557,3305.3,3304.2,1.51318]
[1732469924294,0.8301,3304.8,3304.2,1.51318]
[1732469924805,3.85603,3304.8,3304.2,1.51318]
[1732469925543,0.8301,3304.8,3304.1,1.51324]
[1732469925621,3.77929,3305.1,3304.4,1.51309]
[1732469925913,3.77929,3305.1,3304.3,1.51315]
[1732469926114,3.02583,3304.9,3304.4,1.51312]
[1732469926320,3.02583,3304.9,3304.4,1.58140537]
[1732469926803,3.02583,3304.9,3304.4,0.06828537]
[1732469927226,3.02583,3304.9,3304.3,1.51317]
[1732469927442,3.02583,3304.9,3304.5,0.06828537]
[1732469927644,3.02583,3304.9,3304.3,1.51317]
[1732469928139,3.02583,3304.9,3304.4,0.06828537]
[1732469929541,3.02552,3305.3,3304.5,1.51308]
[1732469929787,3.02552,3305.3,3304.7,1.51296]
[1732469929917,3.02552,3305.3,3304.7,3.02593]
[1732469930147,3.02552,3305.3,3304.8,0.06600919]
[1732469930327,3.7787,3305.7,3304.8,0.06600919]
[1732469930533,3.02497,3305.9,3304.8,0.03025711]
[1732469930895,6.04995,3305.9,3305.2,1.51276]
[1732469931039,6.730281,3305.9,3305.2,1.51276]
[1732469931239,3.705271,3305.9,3305.0,1.51283]
[1732469931416,3.705271,3305.9,3305.2,1.51273]
[1732469931750,3.02499,3305.8,3305.2,1.51273]
[1732469932035,3.02508,3305.7,3305.3,0.06560805]
[1732469932201,3.02528,3305.5,3305.3,0.06560805]
[1732469932413,3.02528,3305.5,3305.0,1.51283]
[1732469932598,3.02508,3305.7,3305.4,0.0649704]
[1732469932843,6.38980071,3305.7,3305.0,1.51283]
[1732469933145,3.02521,3305.6,3305.0,1.51283]
[1732469933347,0.7536,3305.5,3305.1,0.0649704]
[1732469934451,3.77853,3305.9,3305.2,1.51276]
[1732469934654,0.56592841,3306.1,3305.6,1.51256]
[1732469934855,3.77828,3306.2,3305.6,1.815082]
[1732469935158,3.02438,3306.5,3305.7,1.51253]
[1732469935330,3.02453,3306.3,3305.7,1.57752611]
[1732469935718,3.02463,3306.2,3305.7,1.57752611]
[1732469938767,3.02472,3306.1,3305.7,0.06499611]
[1732469939056,3.02472,3306.1,3305.6,1.51257]
[1732469939262,3.02472,3306.1,3305.8,0.06476993]
[1732469939452,3.02452,3306.3,3305.5,1.51262]
[1732469939627,3.02452,3306.3,3305.9,0.06476479]
[1732469939963,0.7536,3306.1,3305.6,1.51255]
[1732469940127,3.02468,3306.2,3306.0,0.06476993]
[1732469940329,3.02468,3306.2,3305.6,1.51255]
[1732469940528,0.7536,3306.3,3306.1,0.06478535]
[1732469940779,3.77779,3306.7,3306.0,1.51239]
[1732469940982,3.77779,3306.7,3306.2,0.06478535]
[1732469941121,0.7536,3306.7,3306.1,0.06474937]
[1732469941327,3.02449,3306.4,3305.8,1.51247]
[1732469941559,3.02449,3306.4,3306.2,0.06474937]
[1732469941869,3.02449,3306.4,3305.9,1.963687]
[1732469942029,3.02449,3306.4,3306.3,0.06474937]
[1732469942227,3.02426,3306.6,3306.0,1.51236]
[1732469942434,3.02409,3306.8,3306.3,0.06460548]
[1732469942628,3.02409,3306.8,3305.5,3.03024467]
[1732469942629,0.7536,3306.9,3306.4,1.51221]
[1732469942839,0.7536,3307.2,3306.6,1.51212]
[1732469943154,3.02363,3307.3,3306.7,1.51205]
[1732469943390,3.02363,3307.3,3306.8,1.51202]
[1732469943549,0.7536,3307.4,3306.9,1.51198]
[1732469943753,3.02344,3307.5,3307.0,1.51193]
[1732469944061,3.02311,3307.9,3307.3,1.5118]
[1732469944272,6.04585,3308.1,3307.4,1.51175]
[1732469944568,3.02341,3307.6,3307.5,0.06406071]
[1732469945074,3.02341,3307.6,3307.0,1.51191]
[1732469945238,3.02341,3307.6,3307.5,0.06406071]
[1732469945451,3.02306,3307.9,3307.3,1.51178]
[1732469945764,3.02322,3307.8,3307.2,1.51185]
[1732469946263,3.02307,3307.9,3307.3,1.57583071]
[1732469946442,3.02311,3307.9,3307.3,1.57583071]
[1732469947337,3.02311,3307.9,3307.4,1.51174]
[1732469947865,3.02311,3307.9,3307.5,0.06406071]
[1732469948366,3.02283,3308.2,3307.5,0.37281778]
[1732469948545,3.02282,3308.2,3307.6,1.51166]
[1732469948737,3.0229,3308.1,3307.6,1.57535089]
[1732469949275,3.0229,3308.1,3307.6,0.06369089]
[1732469949571,3.02306,3307.9,3307.4,1.51175]
[1732469949792,3.02297,3308.0,3307.7,0.06369089]
[1732469949993,3.02297,3308.0,3307.5,1.5117]
[1732469950205,3.02285,3308.2,3307.8,0.06369089]
[1732469950401,3.02302,3308.0,3307.6,0.1662878]
[1732469950574,3.02302,3308.0,3307.9,0.06369089]
[1732469950789,3.02302,3308.0,3307.4,1.51173]
[1732469950976,3.02302,3308.0,3307.9,0.06369089]
[1732469951181,3.02302,3308.0,3307.4,2.114085]
[1732469951373,3.02302,3308.0,3307.9,0.06369089]
[1732469951587,3.02302,3308.0,3307.4,3.625805]
[1732469951898,3.02302,3308.0,3307.4,1.51172]
[1732469952099,3.02283,3308.2,3307.6,1.51164]
[1732469952295,6.04531,3308.4,3307.6,1.51164]
[1732469952519,3.02264,3308.4,3307.7,0.151164]
[1732469952658,3.02264,3308.4,3307.8,1.51157]
[1732469952862,3.02284,3308.2,3307.7,0.151164]
[1732469953277,3.02284,3308.2,3307.8,0.06369089]
[1732469953474,3.02288,3308.1,3307.7,0.151164]
[1732469953689,3.02288,3308.1,3307.8,0.06369089]
[1732469953891,3.02304,3308.0,3307.8,0.06369089]
[1732469954098,3.02316,3307.8,3307.1,1.51189]
[1732469954767,2.93675713,3308.0,3306.7,1.51205]
[1732469954768,3.02353,3307.4,3306.7,1.51205]
[1732469955099,3.02376,3307.2,3306.7,1.51206]
[1732469955301,6.04754,3307.2,3306.5,2.10598243]
[1732469955472,3.02376,3307.2,3306.6,1.72271524]
[1732469955913,3.02385,3307.1,3306.6,0.21059524]
[1732469956092,3.02385,3307.1,3306.5,2.10598243]
[1732469956271,3.02366,3307.3,3306.6,0.06313101]
[1732469956469,3.02366,3307.3,3306.8,1.51202]
[1732469956666,3.02376,3307.2,3306.6,1.51208]
[1732469956865,3.02361,3307.3,3306.8,1.51202]
[1732469957165,3.83668,3307.8,3307.2,1.51183]
[1732469957368,3.02311,3307.9,3306.9,0.03023971]
[1732469957369,3.02327,3307.7,3307.1,1.51186]
[1732469957610,3.02327,3307.7,3307.3,0.06319779]
[1732469957767,3.55863791,3307.9,3307.2,1.51184]
[1732469957768,3.55863791,3307.9,3307.2,1.57503265]
[1732469957968,0.8135,3308.1,3307.3,0.03023471]
[1732469957969,3.83642,3308.1,3307.3,0.03023471]
[1732469958271,3.02288,3308.1,3307.5,1.51171]
[1732469958469,3.02288,3308.1,3307.6,1.57485265]
[1732469958869,3.14566913,3308.4,3307.6,0.06319265]
[1732469959172,3.14566913,3308.4,3307.3,1.5118]
[1732469959173,3.02312,3307.9,3307.3,1.5118]
[1732469959488,3.02317,3307.8,3307.7,0.06319265]
[1732469959799,3.02302,3308.0,3307.7,0.06319265]
[1732469959969,6.04608,3308.0,3307.4,1.51172]
[1732469960168,6.04608,3308.0,3307.8,0.06319265]
[1732469960373,3.02302,3308.0,3307.4,1.51172]
[1732469960870,3.02302,3308.0,3307.5,0.06319265]
[1732469961609,3.02302,3308.0,3307.5,1.57490265]
[1732469962012,3.02293,3308.1,3307.5,1.57490265]
[1732469962376,3.02283,3308.2,3307.6,1.51164]
[1732469962581,3.02283,3308.2,3307.7,1.51162]
[1732469962816,3.02283,3308.2,3307.7,0.06319265]
[1732469963180,3.02283,3308.2,3307.6,1.51166]
[1732469963378,3.02283,3308.2,3307.8,0.06319265]
[1732469963379,3.02306,3308.0,3307.8,0.06319265]
[1732469963602,3.0229,3308.1,3307.5,1.51168]
[1732469963808,3.0229,3308.1,3307.9,0.06319265]
[1732469964022,3.0229,3308.1,3307.5,1.51168]
[1732469964175,3.0229,3308.1,3308.0,0.06319265]
[1732469964384,3.0229,3308.1,3307.6,1.51166]
[1732469964806,3.0229,3308.1,3308.0,0.06319265]
[1732469965005,3.0229,3308.1,3307.6,1.51166]
[1732469965180,3.02284,3308.2,3308.0,0.06319265]
[1732469965398,3.02272,3308.3,3307.7,1.51162]
[1732469965592,3.02272,3308.3,3308.1,0.06319265]
[1732469965800,3.02272,3308.3,3307.6,1.814002]
[1732469965801,3.02279,3308.2,3307.6,1.51166]
[1732469966179,3.02279,3308.2,3307.7,1.51162]
[1732469966520,3.02279,3308.2,3307.6,1.51166]
[1732469966521,3.02288,3308.1,3307.6,1.51166]
[1732469966685,0.8135,3308.4,3307.3,3.0]
[1732469966884,0.8135,3308.4,3307.8,1.51154]
[1732469966885,3.02267,3308.4,3307.8,1.51154]
[1732469967186,6.04535,3308.4,3307.8,1.51153]
[1732469967377,3.02267,3308.4,3307.4,0.3]
[1732469967581,3.02267,3308.4,3307.8,1.51153]
[1732469967808,3.02256,3308.5,3307.9,1.5115]
[1732469968461,3.02262,3308.4,3307.6,1.51164]
[1732469968626,3.02262,3308.4,3307.8,1.51157]
[1732469969006,3.02271,3308.3,3307.8,1.51157]
[1732469969340,3.02262,3308.4,3307.9,1.51152]
[1732469969983,3.02273,3308.3,3307.7,1.51159]
[1732469970187,3.02262,3308.4,3307.6,3.3444108]
[1732469970188,3.02281,3308.2,3307.6,3.3444108]
[1732469970485,3.02281,3308.2,3307.7,1.51161]
[1732469971200,3.02281,3308.2,3307.7,1.84604808]
[1732469971400,3.02281,3308.2,3307.8,0.06281773]
[1732469971714,3.02281,3308.2,3307.9,0.06281773]
[1732469972243,3.02281,3308.2,3308.0,0.06281773]
[1732469972602,3.02281,3308.2,3307.6,1.51163]
[1732469972798,3.02281,3308.2,3308.1,0.06283827]
[1732469973138,3.02281,3308.2,3307.7,1.51161]
[1732469973428,3.02281,3308.2,3308.1,0.06283827]
[1732469973555,3.02281,3308.2,3307.7,1.51161]
[1732469973718,3.02281,3308.2,3308.1,0.06283827]
[1732469974048,3.02281,3308.2,3307.7,1.51161]
[1732469974194,3.02274,3308.3,3308.1,0.06283827]
[1732469974548,3.02274,3308.3,3308.2,0.06283827]
[1732469974836,3.02274,3308.3,3307.8,1.51157]
[1732469975140,3.02264,3308.4,3307.6,1.51163]
[1732469975141,3.02295,3308.1,3307.6,1.51163]
[1732469978034,3.02304,3308.0,3307.5,4.5117]
[1732469978244,3.02304,3308.0,3307.2,0.03022898]
[1732469978245,3.02308,3307.9,3307.2,1.51182]
[1732469978458,3.02308,3307.9,3307.3,4.5118]
[1732469978946,0.7836,3308.2,3307.1,4.51186]
[1732469978947,3.02326,3307.7,3307.1,4.51186]
[1732469979232,0.7525,3307.6,3306.7,0.58897378]
[1732469979399,0.7525,3307.6,3306.8,1.51202]
[1732469979600,3.02357,3307.4,3306.8,1.51202]
[1732469979801,3.02357,3307.4,3306.8,1.512]
[1732469980000,3.02357,3307.4,3306.9,1.51197]
[1732469980645,3.77589,3307.6,3306.9,1.51195]
[1732469980941,3.02359,3307.4,3306.8,1.51201]
[1732469981157,3.02359,3307.4,3306.8,1.87331538]
[1732469981962,6.04718,3307.4,3306.8,1.87331538]
[1732469982132,3.02359,3307.4,3306.8,1.87331538]
[1732469982326,3.02359,3307.4,3306.9,1.51198]
[1732469982773,3.02366,3307.3,3306.8,0.36130538]
[1732469983368,3.02373,3307.2,3306.8,0.36130538]
[1732469984160,3.02347,3307.5,3306.8,0.36130538]
[1732469984431,3.02347,3307.5,3306.7,4.51208]
[1732469984432,3.02368,3307.3,3306.7,4.51208]
[1732469985506,3.02368,3307.3,3306.7,3.0]
[1732469985691,3.02378,3307.2,3306.6,1.51212]
[1732469985885,3.02378,3307.2,3306.6,3.02421]
[1732469986055,3.02378,3307.2,3306.6,1.51209]
[1732469986267,3.02368,3307.3,3306.2,1.51228]
[1732469986268,3.02409,3306.8,3306.2,1.51228]
[1732469986479,3.02409,3306.8,3306.7,0.0589791]
[1732469986657,3.02417,3306.7,3306.2,1.51228]
[1732469987166,3.02409,3306.8,3306.3,0.0589945]
[1732469987379,3.02409,3306.8,3306.3,1.51223]
[1732469987689,0.8251,3307.3,3306.4,1.5712045]
[1732469988261,3.02404,3306.9,3306.4,0.0589945]
[1732469989483,3.02408,3306.8,3306.4,0.0589945]
[1732469989788,0.8251,3306.6,3306.4,0.0589945]
[1732469989948,3.02426,3306.6,3305.5,1.51261]
[1732469990151,3.02426,3306.6,3306.5,0.05982149]
[1732469990387,3.02426,3306.6,3305.9,2.12534285]
[1732469990388,3.02437,3306.5,3305.9,2.12534285]
[1732469991083,3.02428,3306.6,3306.0,1.51238]
[1732469991287,6.04862,3306.6,3306.0,1.51238]
[1732469991522,3.02435,3306.5,3306.0,1.51238]
[1732469992183,3.02443,3306.4,3305.8,1.51249]
[1732469992385,3.8498,3306.2,3305.5,3.60286096]
[1732469992596,3.8498,3306.2,3305.5,2.11548096]
[1732469992597,3.02483,3306.0,3305.5,2.11548096]
[1732469992826,3.02483,3306.0,3305.0,1.51284]
[1732469992827,3.02483,3306.0,3305.3,1.51269]
[1732469993005,0.8251,3306.2,3305.2,0.451284]
[1732469993006,3.02499,3305.8,3305.2,0.451284]
[1732469993183,3.02499,3305.8,3305.0,1.51283]
[1732469993184,3.02528,3305.5,3304.9,2.11041834]
[1732469993387,3.02513,3305.7,3305.0,1.51282]
[1732469993613,3.02517,3305.6,3305.1,0.21103683]
[1732469993822,3.02513,3305.7,3305.1,0.21103683]
[1732469994684,3.02513,3305.7,3305.1,1.72383683]
[1732469995297,3.02522,3305.6,3305.1,0.21103683]
[1732469995742,6.05028,3305.7,3305.1,1.72383683]
[1732469995926,3.02513,3305.7,3305.1,1.72383683]
[1732469996087,3.02491,3305.9,3305.2,1.51276]
[1732469996289,3.02491,3305.9,3305.2,1.68514368]
[1732469996290,3.02507,3305.7,3305.2,1.68514368]
[1732469996918,3.02519,3305.6,3305.2,0.17238368]
[1732469997744,3.02494,3305.9,3305.2,0.17238368]
[1732469998029,3.0251,3305.7,3305.2,0.17238368]
[1732469998653,3.0251,3305.7,3305.2,1.68514368]
[1732469998848,3.02528,3305.5,3305.2,0.17238368]
[1732469999413,3.02528,3305.5,3305.1,0.21103683]
[1732469999414,3.02536,3305.4,3305.1,0.21103683]
[1732469999646,3.02528,3305.5,3305.1,0.21103683]
[1732469999853,3.02528,3305.5,3304.9,0.59754834]
[1732469999854,3.02528,3305.5,3304.9,2.11044834]
[1732470000049,3.02528,3305.5,3304.9,5.11044834]
[1732470000423,3.02543,3305.4,3304.6,1.51302]
[1732470000747,3.02553,3305.2,3304.6,1.51302]
[1732470000958,3.02526,3305.5,3304.5,0.61822728]
[1732470001157,3.02536,3305.4,3304.6,1.51301]
[1732470001339,3.85029,3305.6,3304.8,1.51291]